[Event "CCT Julius Baer-D2-Place 2024"]
[Site "Online"]
[Date "2024.09.26"]
[Round "1"]
[White "Lazavik, Denis"]
[Black "Guseinov, Gadir"]
[Result "1-0"]
[ECO "E94"]
[WhiteElo "2578"]
[BlackElo "2636"]
[Annotator "TA"]
[PlyCount "73"]
[EventDate "2024.09.25"]
[EventType "swiss"]
[EventCountry "NET"]
[SourceTitle "playchess.com"]
[Source "ChessBase"]
[SourceQuality "1"]
[TimeControl "600+2"]

{[%evp 28,73,90,75,85,68,82,62,72,44,70,47,42,22,17,29,27,16,26,0,69,39,70,59,76,70,48,62,87,57,90,88,177,100,150,131,495,511,447,422,29985,29985,29987,29988,29992,29993,29993,1206]} 1. d4 {[%emt 0:00:03]} Nf6 {[%emt 0:00:03]} 2. c4 {[%emt 0:00:02]} g6 {[%emt 0:00:01]} 3. Nc3 {[%emt 0:00:01]} Bg7 {[%emt 0:00:00]} 4. e4 {[%emt 0:00:00]} O-O {[%emt 0:00:01]} 5. Nf3 {[%emt 0:00:02]} d6 {[%emt 0:00:00]} 6. Be2 {[%emt 0:00:01]} c6 {[%emt 0:00:07]} 7. O-O {[%emt 0:00:03]} e5 {[%emt 0:00:03]} 8. d5 {[%emt 0:00:17]} Na6 {[%emt 0:00:01]} 9. Be3 {[%emt 0:00:14]} Ng4 {[%emt 0:00:01]} 10. Bg5 {[%emt 0:00:07]} f6 {[%emt 0:00:01]} 11. Bh4 {[%emt 0:00:17]} c5 {[%emt 0:00:02]} 12. Nd2 {[%emt 0:00:04]} Nh6 {[%emt 0:00:02]} 13. a3 {[%emt 0:00:06]} Nf7 {[%emt 0:00:02]} 14. Rb1 {[%emt 0:00:15]} h5 {[%emt 0:00:01]} 15. f3 {[%emt 0:00:08]} Bh6 {[%emt 0:00:00]} 16. b4 {[%emt 0:00:21]} b6 {[%emt 0:00:02]} 17. Kh1 {[%emt 0:00:22]} Nc7 {[%emt 0:00:03] White is slightly better.} 18. bxc5 {[%emt 0:00:10]} bxc5 {[%emt 0:00:02]} 19. Nb3 {[%emt 0:00:05]} Ne8 {[%emt 0:00:00]} 20. Na4 {[%emt 0:00:20]} Bg5 {[%emt 0:00:11]} 21. Bf2 {[%emt 0:00:04]} f5 {[%emt 0:00:01]} 22. Naxc5 {[%emt 0:00:06]} dxc5 {[%emt 0:00:04]} 23. Nxc5 {[%emt 0:00:00]} Nf6 {[%emt 0:00:24]} (23... Nfd6 $11) 24. exf5 {[%emt 0:01:50]} gxf5 {[%emt 0:00:44]} 25. Ne6 {[%emt 0:00:07] Dodges Qc7. White is more active.} Bxe6 {[%emt 0:00:51]} 26. dxe6 {[%emt 0:00:00]} Nh8 {[%emt 0:00:02]} 27. c5 {[%emt 0:00:41][%cal Bc4c5,Bc5c6][%mdl 1056] White has compensation.} Ng6 {[%emt 0:02:24]} 28. Bc4 {[%emt 0:00:12] [#] Hoping for e7+.} Qe7 {[%emt 0:01:14]} 29. c6 $36 {[%emt 0:00:18][%mdl 2048] White has strong initiative.} Rab8 {[%emt 0:01:51] Inhibits Rb7.} (29... Rfc8 $16) 30. Qc2 {[%emt 0:00:10]} (30. Rb7 $18 Rxb7 (30... Qxa3 $2 31. e7+ Kh8 32. exf8=N $18) 31. cxb7) 30... e4 {[%emt 0:00:15]} (30... Kg7 $142) 31. Bd4 $16 {[%emt 0:02:28] fxe4 would now be deadly. Some like it hot. A strong pair of Bishops.} Rfc8 $2 {[%emt 0:02:05][%mdl 8192] Loses the game.} (31... Kh7 $16) 32. Rxb8 $18 {[%emt 0:00:10]} Rxb8 {[%emt 0:00:00]} 33. fxe4 {[%emt 0:00:01]} Nxe4 {[%emt 0:00:25]} (33... Qd6 $18 34. e5 (34. Bxa7 Ne7 $18) 34... Qxd4) 34. Rxf5 {[%emt 0:00:06] White mates.} Nd6 {[%emt 0:00:05] [#] Black is weak on the light squares} 35. Rf7 $1 {[%emt 0:00:19][%mdl 512]} Nxf7 {[%emt 0:00:00]} (35... Nf8 36. c7) 36. Qxg6+ {[%emt 0:00:01]} Kf8 {[%emt 0:00:01]} 37. Qg7+ {[%emt 0:00:01] Weighted Error Value: White=0.19 (very precise) /Black=0.67.  Loses game:     	---       	Black=1      Mistake:       	White=1     	Black=4      Inaccurate:     	White=4     	Black=3      OK:         	White=3     	Black=5      Best:        	White=3     	---} (37. Qxf7+ $2 {is the wrong capture.} Qxf7 38. Bc5+ (38. exf7 $2 Rb1+ 39. Bg1 Be3 $19) 38... Be7 (38... Qe7 39. Bxe7+ Bxe7 40. Kg1 $19) 39. exf7 Rb1+ (39... Bxc5 $2 40. g3 $19) 40. Bg1 Bc5 $19 (40... Bxa3 41. c7 Kg7 42. c8=Q Rd1 43. Qf5 Kf8 44. Qxh5)) 1-0

[Event "CCT Julius Baer-D2-Place 2024"]
[Site "Online"]
[Date "2024.09.26"]
[Round "1"]
[White "Pranav Vijay"]
[Black "Daneshvar, Bardiya"]
[Result "0-1"]
[ECO "B20"]
[WhiteElo "2252"]
[BlackElo "2598"]
[Annotator "RC"]
[PlyCount "100"]
[EventDate "2024.09.25"]
[EventType "swiss"]
[EventCountry "NET"]
[SourceTitle "playchess.com"]
[Source "ChessBase"]
[SourceQuality "1"]
[TimeControl "600+2"]

1. e4 {[%emt 0:00:02]} c5 {[%emt 0:00:04]} 2. b4 {[%emt 0:00:02]} cxb4 {[%emt 0:00:03]} 3. a3 {[%emt 0:00:01]} d5 {[%emt 0:00:01]} 4. exd5 {[%emt 0:00:02]} Qxd5 {[%emt 0:00:00]} 5. Nf3 {[%emt 0:00:02]} e5 {[%emt 0:00:20]} 6. c4 {[%emt 0:00:23]} Qd6 {[%emt 0:00:54]} 7. c5 {[%emt 0:00:57]} Qf6 {[%emt 0:00:49]} 8. Bb2 {[%emt 0:00:52]} Bxc5 {[%emt 0:00:04]} 9. axb4 {[%emt 0:01:13]} Bd4 {[%emt 0:00:31]} 10. Nxd4 {[%emt 0:00:57]} exd4 {[%emt 0:00:03]} 11. Bb5+ {[%emt 0:00:00]} Bd7 {[%emt 0:00:04]} 12. Bxd7+ {[%emt 0:00:14]} Nxd7 {[%emt 0:00:00]} 13. O-O {[%emt 0:00:00]} Ne7 {[%emt 0:00:05]} 14. Qg4 {[%emt 0:00:07]} Nf5 {[%emt 0:00:58]} 15. Re1+ {[%emt 0:00:13]} Kf8 {[%emt 0:00:47]} 16. Na3 {[%emt 0:00:27]} h5 {[%emt 0:01:55]} 17. Qe4 {[%emt 0:00:05]} Nd6 {[%emt 0:00:01]} 18. Qd3 {[%emt 0:00:28]} Rd8 {[%emt 0:00:44]} 19. Bxd4 {[%emt 0:00:10]} Qg6 {[%emt 0:00:01]} 20. Qf3 {[%emt 0:00:37]} Qg4 {[%emt 0:00:50]} 21. Qd5 {[%emt 0:01:19]} Nf6 {[%emt 0:00:03]} 22. Qa5 {[%emt 0:00:44]} b6 {[%emt 0:00:07]} 23. Qe5 {[%emt 0:00:45]} Kg8 {[%emt 0:00:14]} 24. h3 {[%emt 0:00:08]} Qg6 {[%emt 0:00:31]} 25. Qf4 {[%emt 0:00:30]} Nd5 {[%emt 0:00:23]} 26. Qf3 {[%emt 0:00:01]} Nf5 {[%emt 0:00:09]} 27. Bc3 {[%emt 0:00:03]} Nh4 {[%emt 0:00:55]} 28. Qg3 {[%emt 0:00:04]} Qxg3 {[%emt 0:00:02]} 29. fxg3 {[%emt 0:00:01]} Nf5 {[%emt 0:00:00]} 30. Nc4 {[%emt 0:00:02]} Rd7 {[%emt 0:00:08]} 31. g4 {[%emt 0:00:25]} hxg4 {[%emt 0:00:03]} 32. hxg4 {[%emt 0:00:00]} Nfe7 {[%emt 0:00:02]} 33. Ne5 {[%emt 0:00:06]} Rc7 {[%emt 0:00:02]} 34. b5 {[%emt 0:00:02]} f6 {[%emt 0:00:04]} 35. Nf3 {[%emt 0:00:01]} Kf7 {[%emt 0:00:04]} 36. g5 {[%emt 0:00:01]} Nf5 {[%emt 0:00:08]} 37. gxf6 {[%emt 0:00:04]} gxf6 {[%emt 0:00:00]} 38. Rf1 {[%emt 0:00:02]} Kg6 {[%emt 0:00:02]} 39. Ra4 {[%emt 0:00:01]} Nxc3 {[%emt 0:00:05]} 40. dxc3 {[%emt 0:00:01]} Rxc3 {[%emt 0:00:00]} 41. Rxa7 {[%emt 0:00:07]} Ng3 {[%emt 0:00:01]} 42. Rd1 {[%emt 0:00:04]} Rh1+ {[%emt 0:00:03]} 43. Kf2 {[%emt 0:00:01]} Rxd1 {[%emt 0:00:04]} 44. Kxg3 {[%emt 0:00:01]} Rd5 {[%emt 0:00:01]} 45. Rb7 {[%emt 0:00:04]} Rxb5 {[%emt 0:00:01]} 46. Kf2 {[%emt 0:00:01]} Rb2+ {[%emt 0:00:01]} 47. Kg3 {[%emt 0:00:00]} b5 {[%emt 0:00:01]} 48. Kh3 {[%emt 0:00:05]} b4 {[%emt 0:00:01]} 49. Kh4 {[%emt 0:00:01]} Rxg2 {[%emt 0:00:01]} 50. Ne5+ {[%emt 0:00:01]} Kf5 {[%emt 0:00:03]} 0-1

[Event "CCT Julius Baer-D2-Place 2024"]
[Site "Online"]
[Date "2024.09.26"]
[Round "1.1"]
[White "Sargsyan, Shant"]
[Black "Kobalia, Mikhail"]
[Result "1/2-1/2"]
[ECO "D43"]
[WhiteElo "2649"]
[BlackElo "2543"]
[Annotator "TA"]
[PlyCount "66"]
[EventDate "2024.09.25"]
[EventType "swiss"]
[EventCountry "NET"]
[SourceTitle "playchess.com"]
[Source "ChessBase"]
[SourceQuality "1"]
[TimeControl "600+2"]

{[%evp 13,66,18,14,14,27,21,28,9,24,20,18,31,30,0,8,-14,-8,0,47,31,29,37,76,0,70,0,0,0,0,0,0,-10,-7,-27,-22,-33,0,0,0,-41,-45,-46,-37,-64,-60,-65,-8,-5,0,-8,0,-10,0,-12,0]} 1. d4 {[%emt 0:00:02]} d5 {[%emt 0:00:06]} 2. Nf3 {[%emt 0:00:01]} Nf6 {[%emt 0:00:02]} 3. c4 {[%emt 0:00:00]} c6 {[%emt 0:00:01]} 4. Nc3 {[%emt 0:00:01]} e6 {[%emt 0:00:01]} 5. Bg5 {[%emt 0:00:01]} h6 {[%emt 0:00:01]} 6. Bxf6 {[%emt 0:00:01]} Qxf6 {[%emt 0:00:01]} 7. e3 {[%emt 0:00:00][%cal Be2e3,Be3e4][%mdl 32]} g6 {[%emt 0:00:02]} 8. Be2 {[%emt 0:00:02]} Bg7 {[%emt 0:00:01]} 9. O-O {[%emt 0:00:01]} O-O {[%emt 0:00:01]} 10. e4 {[%emt 0:00:16] White has an edge.} dxc4 {[%emt 0:00:03]} 11. Bxc4 {[%emt 0:00:07]} Nd7 {[%emt 0:00:03]} 12. Re1 {[%emt 0:00:08]} Rd8 {[%emt 0:00:09]} 13. a4 {[%emt 0:00:13]} (13. e5 $5 Qe7 $8 14. Rc1 $11) 13... Nb6 {[%emt 0:01:08]} 14. Qb3 {[%emt 0:00:06]} (14. e5 $5 Qe7 $8 15. Qb3 $11) 14... Nxc4 {[%emt 0:00:24]} 15. Qxc4 {[%emt 0:00:00]} a5 {[%emt 0:00:17]} (15... e5 $11 {is more appropriate.}) 16. e5 $14 {[%emt 0:00:19]} Qe7 {[%emt 0:00:02]} 17. Ne4 {[%emt 0:00:01]} Qb4 {[%emt 0:00:31] Repels Qb3} 18. Qc3 {[%emt 0:00:13]} ({Better is} 18. Qc1 $16) 18... Bd7 {[%emt 0:00:21]} (18... Qxc3 $11 19. bxc3 b6) 19. Nc5 {[%emt 0:00:41] White is more active.} ({White should play} 19. Qe3 $14) 19... Qxc3 $11 {[%emt 0:00:43]} 20. bxc3 {[%emt 0:00:01]} b6 {[%emt 0:00:00]} 21. Nxd7 {[%emt 0:00:19]} Rxd7 {[%emt 0:00:01]} 22. Rab1 {[%emt 0:00:01]} Rb7 {[%emt 0:00:03]} 23. Rb3 {[%emt 0:00:13]} b5 {[%emt 0:00:02]} 24. Reb1 {[%emt 0:00:03]} Rab8 {[%emt 0:00:05]} 25. Nd2 {[%emt 0:00:04][%cal Od2c4]} Bf8 {[%emt 0:00:15]} 26. Nc4 {[%emt 0:00:10] [#]} Bb4 $1 {[%emt 0:00:04]} 27. axb5 {[%emt 0:01:51]} cxb5 {[%emt 0:00:04]} 28. Nb2 {[%emt 0:00:06]} Be7 {[%emt 0:00:14]} 29. Kf1 {[%emt 0:00:02]} Ra8 {[%emt 0:00:37]} ({And not} 29... a4 30. Nxa4 b4 31. Nc5 Bxc5 32. dxc5 bxc3 33. Rxb7 $16) (29... b4 $15 30. Na4 Rd8) 30. Na4 {[%emt 0:00:11] The position is equal.} Bb4 {[%emt 0:00:19]} 31. Nb2 {[%emt 0:00:15]} Be7 {[%emt 0:00:02] White must now prevent ...a4.} 32. Na4 {[%emt 0:00:21]} Bb4 {[%emt 0:00:03]} 33. Nb2 {[%emt 0:00:06]} Be7 {[%emt 0:00:02] Weighted Error Value: White=0.15 (very precise) /Black=0.15 (very precise) .  Mistake:       	White=2     	Black=3      Inaccurate:     	White=3     	Black=2      OK:         	White=8     	Black=8      Best:        	White=1     	---        Brilliant:      	---       	Black=1} 1/2-1/2

[Event "CCT Julius Baer-D2-Place 2024"]
[Site "Online"]
[Date "2024.09.26"]
[Round "1.1"]
[White "Theodorou, Nikolas"]
[Black "Robson, Ray"]
[Result "0-1"]
[ECO "A05"]
[WhiteElo "2619"]
[BlackElo "2700"]
[Annotator "TA"]
[PlyCount "156"]
[EventDate "2024.09.25"]
[EventType "swiss"]
[EventCountry "NET"]
[SourceTitle "playchess.com"]
[Source "ChessBase"]
[SourceQuality "1"]
[TimeControl "600+2"]

{[%evp 69,156,-347,-294,-347,-359,-393,-383,-545,-576,-554,-448,-530,-587,-602,-452,-448,-446,-444,-424,-387,0,-382,0,-392,-395,-628,-630,-738,-731,-840,-834,-839,-820,-1163,-1163,-1152,-1063,-1152,-1135,-1312,-1244,-1848,-1927,-4618,-4104,-29959,-29960,-29982,-29983,-29987,-29983,-29983,-29984,-29989,-29990,-29990,-29981,-29983,-29984,-29985,-29982,-29981,-29980,-29979,-29980,-29981,-29971,-29982,-12797,-29986,-29987,-29987,-29985,-29985,-29986,-29982,-29980,-29992,-29989,-29989,-29990,-29990,-29991,-29991,-29988,-29990,-29991,-29993,-29994]} 1. Nf3 {[%emt 0:00:02]} c5 {[%emt 0:00:10]} 2. b3 {[%emt 0:00:04]} Nf6 {[%emt 0:00:06]} 3. Bb2 {[%emt 0:00:01]} g6 {[%emt 0:00:01]} 4. e4 {[%emt 0:00:11]} Bg7 {[%emt 0:00:18]} 5. e5 {[%emt 0:00:01]} Nh5 {[%emt 0:00:14]} 6. d4 {[%emt 0:00:37]} cxd4 {[%emt 0:00:10]} 7. Qxd4 {[%emt 0:00:00]} Nc6 {[%emt 0:00:13]} 8. Qe3 {[%emt 0:00:01]} d6 {[%emt 0:00:36]} 9. Bb5 {[%emt 0:00:01]} O-O {[%emt 0:00:27]} 10. Bxc6 {[%emt 0:00:01]} bxc6 {[%emt 0:00:03]} 11. Nbd2 {[%emt 0:00:01]} dxe5 {[%emt 0:00:32]} 12. Bxe5 {[%emt 0:00:06]} Nf6 {[%emt 0:00:16]} 13. h3 {[%emt 0:00:16]} Nd5 {[%emt 0:00:58]} 14. Qc5 {[%emt 0:00:04]} Qb6 {[%emt 0:00:01]} 15. Qd4 {[%emt 0:01:11]} Qxd4 {[%emt 0:00:46]} 16. Bxd4 {[%emt 0:00:00]} e5 {[%emt 0:00:10]} 17. Bb2 {[%emt 0:00:44]} Bf5 {[%emt 0:01:04]} 18. O-O-O {[%emt 0:00:03]} Nb4 {[%emt 0:00:56]} 19. a3 {[%emt 0:00:09]} Nxc2 {[%emt 0:00:08]} 20. g4 {[%emt 0:00:01]} Bd3 {[%emt 0:00:03]} 21. Bxe5 {[%emt 0:00:35]} Nxa3 {[%emt 0:00:15]} 22. Bd6 {[%emt 0:00:02]} Nb5 {[%emt 0:00:07]} 23. Bxf8 {[%emt 0:00:01]} Bxf8 {[%emt 0:00:00]} 24. Nc4 {[%emt 0:00:27]} Be4 {[%emt 0:00:13]} 25. Nfe5 {[%emt 0:00:36]} Bxh1 {[%emt 0:00:02]} 26. Rxh1 {[%emt 0:00:00]} Nd4 {[%emt 0:00:02]} 27. Rd1 {[%emt 0:00:01]} Nxb3+ {[%emt 0:00:26]} 28. Kc2 {[%emt 0:00:02]} Nc5 {[%emt 0:00:00]} 29. Nxc6 {[%emt 0:00:02]} Ne4 {[%emt 0:00:12]} 30. f3 {[%emt 0:00:41]} Ng5 {[%emt 0:00:13]} 31. f4 {[%emt 0:00:40]} Nxh3 {[%emt 0:00:16]} 32. f5 {[%emt 0:00:00]} Rc8 {[%emt 0:00:28]} 33. N4a5 {[%emt 0:00:01]} Kg7 {[%emt 0:00:29]} 34. Kb3 {[%emt 0:00:04]} Nf2 {[%emt 0:00:08]} 35. Rd4 {[%emt 0:00:21]} Bc5 {[%emt 0:00:06]} 36. Rc4 {[%emt 0:00:07]} Bb6 {[%emt 0:00:07]} 37. Nb7 {[%emt 0:00:02]} Ne4 {[%emt 0:00:22]} 38. Kb4 {[%emt 0:00:15]} (38. Rxe4 $142 Rxc6 39. fxg6 Kxg6 (39... hxg6 $2 40. Kb4 $19) 40. Kb4) 38... gxf5 $19 {[%emt 0:00:03]} 39. gxf5 {[%emt 0:00:01]} Kf6 {[%emt 0:00:03]} 40. Kb5 {[%emt 0:00:10]} Re8 {[%emt 0:00:17]} (40... Kxf5 $2 {loses.} 41. Ne7+ Ke5 42. Rxc8 $18 (42. Nxc8 f5 $18)) 41. Rc2 {[%emt 0:00:41]} Kxf5 {[%emt 0:00:02]} 42. Rh2 {[%emt 0:00:00]} Kg6 {[%emt 0:00:01]} 43. Rg2+ {[%emt 0:00:01]} Kf6 {[%emt 0:00:00]} 44. Rh2 {[%emt 0:00:01]} Kg6 {[%emt 0:00:09]} 45. Rg2+ {[%emt 0:00:01]} Kf5 {[%emt 0:00:12]} 46. Rh2 $1 {[%emt 0:00:02]} Rh8 {[%emt 0:00:01]} 47. Rh5+ {[%emt 0:00:11]} (47. Rh4 $142 Nc3+ (47... h5 48. Ne7+ Ke5 49. Nc6+ Kf5 50. Ne7+ Ke5 51. Nc6+ Kf6 52. Rxe4 $17) 48. Ka6) 47... Kg4 $19 {[%emt 0:00:07]} 48. Rh1 {[%emt 0:00:08]} f6 {[%emt 0:00:01]} 49. Ne7 {[%emt 0:00:04]} h5 {[%emt 0:00:01]} 50. Re1 {[%emt 0:00:14]} f5 {[%emt 0:00:02]} 51. Ng6 {[%emt 0:00:03]} Rh6 {[%emt 0:00:02]} 52. Ne5+ {[%emt 0:00:01]} Kf4 {[%emt 0:00:01]} 53. Nd3+ {[%emt 0:00:00]} Kg3 {[%emt 0:00:03]} 54. Rf1 {[%emt 0:00:05]} h4 {[%emt 0:00:02]} 55. Nf4 {[%emt 0:00:13]} h3 {[%emt 0:00:04]} 56. Nxh3 {[%emt 0:00:01]} Rxh3 {[%emt 0:00:02]} 57. Rxf5 {[%emt 0:00:00]} Rh7 {[%emt 0:00:01]} 58. Ka6 {[%emt 0:01:04]} Rxb7 {[%emt 0:00:02]} 59. Rf1 {[%emt 0:00:23]} Re7 {[%emt 0:00:01]} 60. Ra1 {[%emt 0:00:05]} Kf4 {[%emt 0:00:01]} 61. Ra4 {[%emt 0:00:02]} Ke5 {[%emt 0:00:02]} 62. Ra1 {[%emt 0:00:03]} Nc5+ {[%emt 0:00:01]} 63. Kb5 {[%emt 0:00:01]} Kd6 {[%emt 0:00:01]} 64. Rh1 {[%emt 0:00:16]} Kc7 {[%emt 0:00:01]} 65. Rh6 {[%emt 0:00:01]} a6+ {[%emt 0:00:03]} 66. Kc4 {[%emt 0:00:01]} Rd7 {[%emt 0:00:02]} 67. Rg6 {[%emt 0:00:01]} Kb7 {[%emt 0:00:01]} 68. Rh6 {[%emt 0:00:01]} Rc7 {[%emt 0:00:00]} (68... Ne4 $142 69. Kb3 a5 70. Rh3 Rd4 71. Kc2 a4 72. Kb1 Bc5 73. Rh2 a3 74. Rg2 Nc3+ 75. Kc2 a2 76. Rg7+ Ka6 77. Rg1 Nd1 (77... Rd2+ {gets mated.} 78. Kxc3 Bxg1 79. Kxd2 a1=Q 80. Ke2 Qf6 81. Kd3 Qe6 82. Kc2 Qe2+ 83. Kc3 Kb5 84. Kb3 Bd4 85. Ka3 Qb2#) 78. Rxd1 Rxd1 79. Kxd1 a1=Q+ (79... a1=B $2 80. Ke1 $19) 80. Kd2 Qd4+ 81. Ke2 Qe3+ 82. Kd1 Qd3+ 83. Ke1 Qc2 84. Kf1 Qf2#) 69. Kb4 {[%emt 0:00:01]} Nd3+ {[%emt 0:00:02]} 70. Kb3 {[%emt 0:00:01]} a5 {[%emt 0:00:03]} 71. Ka4 {[%emt 0:00:01]} Rc4+ {[%emt 0:00:02]} 72. Kb3 {[%emt 0:00:01]} Rb4+ {[%emt 0:00:00]} 73. Ka3 {[%emt 0:00:01]} Nc5 {[%emt 0:00:02]} 74. Rh8 {[%emt 0:00:01]} Ka6 {[%emt 0:00:01]} 75. Rh5 {[%emt 0:00:02]} Kb5 {[%emt 0:00:01]} 76. Rg5 {[%emt 0:00:01]} Rb3+ {[%emt 0:00:02]} 77. Ka2 {[%emt 0:00:01]} a4 {[%emt 0:00:00]} 78. Rg1 {[%emt 0:00:01]} Ne4 {[%emt 0:00:02]} 0-1

[Event "CCT Julius Baer-D2-Place 2024"]
[Site "Online"]
[Date "2024.09.26"]
[Round "1.1"]
[White "Indjic, Aleksandar"]
[Black "Bosiocic, Marin"]
[Result "1-0"]
[ECO "D36"]
[WhiteElo "2611"]
[BlackElo "2555"]
[Annotator "RC"]
[PlyCount "121"]
[EventDate "2024.09.25"]
[EventType "swiss"]
[EventCountry "NET"]
[SourceTitle "playchess.com"]
[Source "ChessBase"]
[SourceQuality "1"]
[TimeControl "600+2"]

1. d4 {[%emt 0:00:03]} d5 {[%emt 0:00:04]} 2. c4 {[%emt 0:00:01]} e6 {[%emt 0:00:01]} 3. Nf3 {[%emt 0:00:01]} Nf6 {[%emt 0:00:02]} 4. Nc3 {[%emt 0:00:01]} Nbd7 {[%emt 0:00:01]} 5. cxd5 {[%emt 0:00:04]} exd5 {[%emt 0:00:02]} 6. Bg5 {[%emt 0:00:01]} h6 {[%emt 0:00:08]} 7. Bh4 {[%emt 0:00:02]} c6 {[%emt 0:00:04]} 8. Qc2 {[%emt 0:00:02]} Be7 {[%emt 0:00:01]} 9. e3 {[%emt 0:00:02]} O-O {[%emt 0:00:02]} 10. Bd3 {[%emt 0:00:11]} Re8 {[%emt 0:00:03]} 11. O-O {[%emt 0:00:10]} Ne4 {[%emt 0:00:59]} 12. Bxe7 {[%emt 0:00:05]} Qxe7 {[%emt 0:00:02]} 13. Rab1 {[%emt 0:00:00]} a5 {[%emt 0:00:20]} 14. a3 {[%emt 0:00:02]} Nd6 {[%emt 0:00:06]} 15. b4 {[%emt 0:00:06]} axb4 {[%emt 0:00:02]} 16. axb4 {[%emt 0:00:00]} b5 {[%emt 0:00:25]} 17. Rfe1 {[%emt 0:00:06]} Nf6 {[%emt 0:00:27]} 18. Ne5 {[%emt 0:00:02]} Ra6 {[%emt 0:00:31]} 19. Ra1 {[%emt 0:00:06]} Qb7 {[%emt 0:00:52]} 20. Rxa6 {[%emt 0:00:04]} Qxa6 {[%emt 0:00:01]} 21. Qb2 {[%emt 0:00:02]} Nc4 {[%emt 0:00:34]} 22. Bxc4 {[%emt 0:00:02]} bxc4 {[%emt 0:00:01]} 23. Ra1 {[%emt 0:00:03]} Qb7 {[%emt 0:00:06]} 24. Na4 {[%emt 0:00:05]} Ng4 {[%emt 0:00:21]} 25. Nc5 {[%emt 0:00:05]} Qc7 {[%emt 0:00:41]} 26. Nf3 {[%emt 0:00:50]} Nf6 {[%emt 0:00:03]} 27. h3 {[%emt 0:00:12]} Nd7 {[%emt 0:00:06]} 28. Ra8 {[%emt 0:00:08]} Nb6 {[%emt 0:00:42]} 29. Ra3 {[%emt 0:00:06]} Bf5 {[%emt 0:00:12]} 30. Qa1 {[%emt 0:00:02]} Nd7 {[%emt 0:00:10]} 31. Ra7 {[%emt 0:00:03]} Qd6 {[%emt 0:00:07]} 32. g4 {[%emt 0:01:45]} Be6 {[%emt 0:00:15]} 33. Ne5 {[%emt 0:00:14]} Nxe5 {[%emt 0:00:16]} 34. dxe5 {[%emt 0:00:01]} Qb8 {[%emt 0:00:01]} 35. Rb7 {[%emt 0:00:25]} Qa8 {[%emt 0:00:11]} 36. Qc3 {[%emt 0:00:04]} Qa2 {[%emt 0:00:27]} 37. Kg2 {[%emt 0:00:21]} Ra8 {[%emt 0:00:14]} 38. Qd4 {[%emt 0:00:05]} Qb1 {[%emt 0:00:06]} 39. Qf4 {[%emt 0:01:07]} Qg6 {[%emt 0:00:02]} 40. Rc7 {[%emt 0:00:20]} Rc8 {[%emt 0:00:17]} 41. Ra7 {[%emt 0:00:29]} h5 {[%emt 0:00:01]} 42. Kg3 {[%emt 0:00:11]} c3 {[%emt 0:00:09]} 43. Ra1 {[%emt 0:00:04]} c2 {[%emt 0:00:03]} 44. f3 {[%emt 0:00:08]} Kh7 {[%emt 0:00:26]} 45. e4 {[%emt 0:00:25]} Rd8 {[%emt 0:00:26]} 46. Rc1 {[%emt 0:00:11]} dxe4 {[%emt 0:00:08]} 47. Nxe4 {[%emt 0:00:13]} Bb3 {[%emt 0:00:08]} 48. Nc5 {[%emt 0:00:04]} Be6 {[%emt 0:00:11]} 49. Qe4 {[%emt 0:00:37]} Qxe4 {[%emt 0:00:03]} 50. Nxe4 {[%emt 0:00:01]} Bb3 {[%emt 0:00:02]} 51. Nc5 {[%emt 0:00:02]} Bd5 {[%emt 0:00:17]} 52. Rxc2 {[%emt 0:00:01]} Ra8 {[%emt 0:00:01]} 53. Rc3 {[%emt 0:00:04]} Ra2 {[%emt 0:00:03]} 54. gxh5 {[%emt 0:00:27]} Kh6 {[%emt 0:00:02]} 55. Nd3 {[%emt 0:00:01]} Re2 {[%emt 0:00:08]} 56. Nf4 {[%emt 0:01:10]} Rxe5 {[%emt 0:00:02]} 57. Rc5 {[%emt 0:00:02]} f6 {[%emt 0:00:27]} 58. b5 {[%emt 0:00:11]} Bxf3 {[%emt 0:00:10]} 59. Rxe5 {[%emt 0:00:05]} fxe5 {[%emt 0:00:01]} 60. b6 {[%emt 0:00:02]} exf4+ {[%emt 0:00:01]} 61. Kxf3 {[%emt 0:00:01]} 1-0